[Event "Titled Tuesday Blitz November 15 Late 2022"]
[White "Roman, Rodrigo"]
[Black "Stanisz, Patryk"]
[WhiteFideId "3701220"]
[BlackFideId "1123106"]
[WhiteElo "1995"]
[BlackElo "2069"]
[Result "1-0"]
[Round "04"]
[TimeControl "180+1"]
[Date "2022.11.16"]
[WhiteClock "0:03:11"]
[BlackClock "0:00:04"]

1. Nf3 {[%clk 0:03:00]}  d5 {[%clk 0:02:59]} 2. g3 {[%clk 0:03:01]}  c6 {[%clk 0:03:00]} 3. Bg2 {[%clk 0:03:02]}  Nf6 {[%clk 0:03:00]} 4. b3 {[%clk 0:03:03]}  Bf5 {[%clk 0:03:00]} 5. Bb2 {[%clk 0:03:04]}  h6 {[%clk 0:03:01]} 6. Kf1 {[%clk 0:03:05]}  e6 {[%clk 0:03:01]} 7. Kg1 {[%clk 0:03:06]}  Bc5 {[%clk 0:02:59]} 8. h3 {[%clk 0:03:07]}  Nbd7 {[%clk 0:02:58]} 9. e3 {[%clk 0:03:08]}  a5 {[%clk 0:02:57]} 10. d4 {[%clk 0:03:08]}  Bd6 {[%clk 0:02:57]} 11. Nbd2 {[%clk 0:03:09]}  Qe7 {[%clk 0:02:57]} 12. a4 {[%clk 0:03:09]}  e5 {[%clk 0:02:56]} 13. Nxe5 {[%clk 0:03:10]}  Nxe5 {[%clk 0:02:57]} 14. dxe5 {[%clk 0:03:11]}  Bxe5 {[%clk 0:02:58]} 15. Bxe5 {[%clk 0:03:11]}  Qxe5 {[%clk 0:02:59]} 16. Nf3 {[%clk 0:03:12]}  Qe7 {[%clk 0:02:59]} 17. Nd4 {[%clk 0:03:13]}  Bd7 {[%clk 0:02:58]} 18. Kh2 {[%clk 0:03:14]}  O-O {[%clk 0:02:58]} 19. Re1 {[%clk 0:03:14]}  Ne4 {[%clk 0:02:53]} 20. Bxe4 {[%clk 0:03:14]}  Qxe4 {[%clk 0:02:54]} 21. Qd3 {[%clk 0:03:14]}  Qe5 {[%clk 0:02:49]} 22. Nf3 {[%clk 0:03:13]}  Qh5 {[%clk 0:02:42]} 23. Ng1 {[%clk 0:03:14]}  Bf5 {[%clk 0:02:40]} 24. Qd1 {[%clk 0:03:15]}  Qg6 {[%clk 0:02:37]} 25. Rc1 {[%clk 0:03:12]}  Rfe8 {[%clk 0:02:35]} 26. Nf3 {[%clk 0:03:12]}  Qh5 {[%clk 0:02:20]} 27. Nh4 {[%clk 0:03:11]}  Qxd1 {[%clk 0:02:12]} 28. Rexd1 {[%clk 0:03:11]}  Be4 {[%clk 0:02:12]} 29. f3 {[%clk 0:03:10]}  Bh7 {[%clk 0:02:10]} 30. Ng2 {[%clk 0:03:11]}  Re7 {[%clk 0:02:08]} 31. g4 {[%clk 0:03:12]}  Rae8 {[%clk 0:02:04]} 32. Kg3 {[%clk 0:03:13]}  f5 {[%clk 0:02:03]} 33. Rd4 {[%clk 0:03:06]}  fxg4 {[%clk 0:02:01]} 34. hxg4 {[%clk 0:03:05]}  g5 {[%clk 0:01:45]} 35. c4 {[%clk 0:03:04]}  dxc4 {[%clk 0:01:41]} 36. bxc4 {[%clk 0:03:05]}  Kg7 {[%clk 0:01:37]} 37. Rd6 {[%clk 0:03:05]}  Bg8 {[%clk 0:01:31]} 38. e4 {[%clk 0:03:06]}  Re6 {[%clk 0:01:25]} 39. c5 {[%clk 0:03:05]}  Kf6 {[%clk 0:01:23]} 40. Ne3 {[%clk 0:03:05]}  Rxd6 {[%clk 0:01:08]} 41. cxd6 {[%clk 0:03:06]}  Be6 {[%clk 0:01:09]} 42. Rb1 {[%clk 0:03:06]}  Rd8 {[%clk 0:01:04]} 43. Rh1 {[%clk 0:03:07]}  Rxd6 {[%clk 0:00:45]} 44. Rxh6+ {[%clk 0:03:06]}  Ke5 {[%clk 0:00:31]} 45. Rg6 {[%clk 0:03:06]}  Rd4 {[%clk 0:00:22]} 46. Rxg5+ {[%clk 0:03:06]}  Kf6 {[%clk 0:00:22]} 47. Kf4 {[%clk 0:03:06]}  Rxa4 {[%clk 0:00:20]} 48. Rh5 {[%clk 0:03:06]}  Bf7 {[%clk 0:00:20]} 49. g5+ {[%clk 0:03:06]}  Ke7 {[%clk 0:00:14]} 50. Rh6 {[%clk 0:03:07]}  Ra3 {[%clk 0:00:12]} 51. Nf5+ {[%clk 0:03:07]}  Kd7 {[%clk 0:00:07]} 52. g6 {[%clk 0:03:08]}  Bxg6 {[%clk 0:00:03]} 53. Rxg6 {[%clk 0:03:09]}  b5 {[%clk 0:00:04]} 54. Rg7+ {[%clk 0:03:09]}  Ke6 {[%clk 0:00:02]} 55. Re7+ {[%clk 0:03:09]}  Kf6 {[%clk 0:00:02]} 56. e5+ {[%clk 0:03:10]}  Kg6 {[%clk 0:00:03]} 57. Rg7+ {[%clk 0:03:10]}  Kh5 {[%clk 0:00:04]} 58. Rg5# {[%clk 0:03:11]} 1-0


[Site "https://www.chess.com"]

[Event "Titled Tuesday Blitz November 15 Late 2022"]
[White "Romero Ruscalleda, Josep"]
[Black "Hnydiuk, Aleksander"]
[WhiteFideId "2231859"]
[BlackFideId "1109057"]
[WhiteElo "2183"]
[BlackElo "2374"]
[Result "0-1"]
[Round "04"]
[TimeControl "180+1"]
[Date "2022.11.16"]
[WhiteClock "0:00:05"]
[BlackClock "0:00:07"]

1. e4 {[%clk 0:03:00]}  c5 {[%clk 0:02:54]} 2. c3 {[%clk 0:03:00]}  d5 {[%clk 0:02:52]} 3. exd5 {[%clk 0:03:00]}  Qxd5 {[%clk 0:02:53]} 4. d4 {[%clk 0:03:00]}  Nc6 {[%clk 0:02:53]} 5. Nf3 {[%clk 0:02:59]}  Bf5 {[%clk 0:02:54]} 6. Be3 {[%clk 0:02:58]}  Nf6 {[%clk 0:02:38]} 7. Nbd2 {[%clk 0:02:56]}  cxd4 {[%clk 0:02:35]} 8. Nxd4 {[%clk 0:02:52]}  Nxd4 {[%clk 0:02:31]} 9. Bxd4 {[%clk 0:02:52]}  e5 {[%clk 0:02:28]} 10. Qe2 {[%clk 0:02:40]}  Bd6 {[%clk 0:02:23]} 11. Qb5+ {[%clk 0:02:39]}  Qxb5 {[%clk 0:02:07]} 12. Bxb5+ {[%clk 0:02:38]}  Ke7 {[%clk 0:02:04]} 13. Be3 {[%clk 0:02:35]}  Nd5 {[%clk 0:02:04]} 14. Bg5+ {[%clk 0:02:29]}  f6 {[%clk 0:02:03]} 15. Bh4 {[%clk 0:02:29]}  h5 {[%clk 0:01:56]} 16. h3 {[%clk 0:02:20]}  Nf4 {[%clk 0:01:56]} 17. O-O {[%clk 0:02:16]}  Bd3 {[%clk 0:01:53]} 18. Bxd3 {[%clk 0:02:14]}  Nxd3 {[%clk 0:01:54]} 19. Ne4 {[%clk 0:02:08]}  Nc5 {[%clk 0:01:40]} 20. Nxd6 {[%clk 0:02:02]}  Kxd6 {[%clk 0:01:41]} 21. Rfd1+ {[%clk 0:02:02]}  Ke6 {[%clk 0:01:33]} 22. f3 {[%clk 0:02:02]}  Na4 {[%clk 0:01:23]} 23. Rd2 {[%clk 0:01:58]}  Rhd8 {[%clk 0:01:19]} 24. Rad1 {[%clk 0:01:57]}  Ke7 {[%clk 0:01:14]} 25. Bf2 {[%clk 0:01:56]}  Nxb2 {[%clk 0:01:11]} 26. Bc5+ {[%clk 0:01:52]}  Ke8 {[%clk 0:01:11]} 27. Rxd8+ {[%clk 0:01:45]}  Rxd8 {[%clk 0:01:12]} 28. Rb1 {[%clk 0:01:44]}  Rd2 {[%clk 0:00:57]} 29. Bxa7 {[%clk 0:01:41]}  Kd7 {[%clk 0:00:57]} 30. Be3 {[%clk 0:01:36]}  Rc2 {[%clk 0:00:52]} 31. f4 {[%clk 0:01:07]}  e4 {[%clk 0:00:48]} 32. Bd4 {[%clk 0:01:00]}  Kc6 {[%clk 0:00:46]} 33. g4 {[%clk 0:00:57]}  Nd3 {[%clk 0:00:36]} 34. Rb6+ {[%clk 0:00:54]}  Kc7 {[%clk 0:00:35]} 35. gxh5 {[%clk 0:00:52]}  Nxf4 {[%clk 0:00:32]} 36. h6 {[%clk 0:00:36]}  gxh6 {[%clk 0:00:29]} 37. Rxf6 {[%clk 0:00:34]}  Nxh3+ {[%clk 0:00:25]} 38. Kf1 {[%clk 0:00:34]}  h5 {[%clk 0:00:22]} 39. Rh6 {[%clk 0:00:27]}  b5 {[%clk 0:00:14]} 40. Rxh5 {[%clk 0:00:26]}  Rc1+ {[%clk 0:00:14]} 41. Ke2 {[%clk 0:00:21]}  Nf4+ {[%clk 0:00:14]} 42. Kd2 {[%clk 0:00:21]}  Nxh5 {[%clk 0:00:14]} 43. Kxc1 {[%clk 0:00:21]}  Kc6 {[%clk 0:00:14]} 44. Kd2 {[%clk 0:00:22]}  Kd5 {[%clk 0:00:14]} 45. Bb6 {[%clk 0:00:21]}  Ng3 {[%clk 0:00:13]} 46. Ke3 {[%clk 0:00:19]}  Nf5+ {[%clk 0:00:13]} 47. Kd2 {[%clk 0:00:19]}  Kc4 {[%clk 0:00:13]} 48. Kc2 {[%clk 0:00:17]}  Ne7 {[%clk 0:00:10]} 49. Be3 {[%clk 0:00:16]}  Nd5 {[%clk 0:00:10]} 50. Bd4 {[%clk 0:00:16]}  b4 {[%clk 0:00:10]} 51. Bf2 {[%clk 0:00:12]}  bxc3 {[%clk 0:00:09]} 52. a4 {[%clk 0:00:10]}  Nb4+ {[%clk 0:00:08]} 53. Kd1 {[%clk 0:00:09]}  Kd3 {[%clk 0:00:08]} 54. Bc5 {[%clk 0:00:03]}  c2+ {[%clk 0:00:06]} 55. Kc1 {[%clk 0:00:04]}  Na2+ {[%clk 0:00:06]} 56. Kb2 {[%clk 0:00:04]}  c1=Q+ {[%clk 0:00:06]} 57. Kxa2 {[%clk 0:00:05]}  Qxc5 {[%clk 0:00:07]} 58. Kb3 {[%clk 0:00:05]}  Qb6+ {[%clk 0:00:07]} 59. Ka3 {[%clk 0:00:05]}  Kc3 {[%clk 0:00:07]} 60. Ka2 {[%clk 0:00:05]}  Qb2# {[%clk 0:00:07]} 0-1


[Site "https://www.chess.com"]

[Event "Titled Tuesday Blitz November 15 Late 2022"]
[White "Rose, Felix"]
[Black "Hajiyev, Kanan"]
[WhiteFideId "5105722"]
[BlackFideId "13404148"]
[WhiteElo "2039"]
[BlackElo "2118"]
[Result "0-1"]
[Round "04"]
[TimeControl "180+1"]
[Date "2022.11.16"]
[WhiteClock "0:00:08"]
[BlackClock "0:00:21"]

1. e4 {[%clk 0:03:00]}  c6 {[%clk 0:02:58]} 2. d4 {[%clk 0:03:00]}  d5 {[%clk 0:02:59]} 3. e5 {[%clk 0:03:01]}  a6 {[%clk 0:02:59]} 4. h4 {[%clk 0:02:54]}  h5 {[%clk 0:02:59]} 5. Bd3 {[%clk 0:02:50]}  c5 {[%clk 0:02:57]} 6. dxc5 {[%clk 0:02:49]}  Nc6 {[%clk 0:02:58]} 7. f4 {[%clk 0:02:46]}  Bg4 {[%clk 0:02:58]} 8. Nf3 {[%clk 0:02:46]}  e6 {[%clk 0:02:58]} 9. Be3 {[%clk 0:02:44]}  d4 {[%clk 0:02:50]} 10. Bf2 {[%clk 0:02:43]}  Bxc5 {[%clk 0:02:50]} 11. Nbd2 {[%clk 0:02:42]}  Nge7 {[%clk 0:02:48]} 12. Ne4 {[%clk 0:02:36]}  O-O {[%clk 0:02:40]} 13. Nxc5 {[%clk 0:02:27]}  Qa5+ {[%clk 0:02:39]} 14. Qd2 {[%clk 0:02:27]}  Qxc5 {[%clk 0:02:39]} 15. Ng5 {[%clk 0:02:26]}  Nf5 {[%clk 0:02:27]} 16. O-O {[%clk 0:02:17]}  Rfd8 {[%clk 0:02:21]} 17. a3 {[%clk 0:02:03]}  a5 {[%clk 0:02:17]} 18. Qe1 {[%clk 0:01:47]}  Ne3 {[%clk 0:02:13]} 19. Ne4 {[%clk 0:01:25]}  Qb6 {[%clk 0:02:06]} 20. Bxe3 {[%clk 0:01:15]}  dxe3 {[%clk 0:02:06]} 21. Kh2 {[%clk 0:01:16]}  Qxb2 {[%clk 0:01:39]} 22. Qxe3 {[%clk 0:01:14]}  Qd4 {[%clk 0:01:27]} 23. Qxd4 {[%clk 0:01:10]}  Nxd4 {[%clk 0:01:26]} 24. Rab1 {[%clk 0:01:11]}  b5 {[%clk 0:01:21]} 25. Rfe1 {[%clk 0:01:05]}  Rac8 {[%clk 0:01:18]} 26. Rb2 {[%clk 0:01:04]}  b4 {[%clk 0:01:15]} 27. axb4 {[%clk 0:01:01]}  axb4 {[%clk 0:01:16]} 28. Nd6 {[%clk 0:01:01]}  Rc3 {[%clk 0:01:09]} 29. Ne4 {[%clk 0:00:55]}  Rc6 {[%clk 0:00:58]} 30. Ra1 {[%clk 0:00:54]}  Bf5 {[%clk 0:00:55]} 31. Rxb4 {[%clk 0:00:47]}  Bxe4 {[%clk 0:00:51]} 32. Bxe4 {[%clk 0:00:43]}  Nxc2 {[%clk 0:00:48]} 33. Bxc6 {[%clk 0:00:36]}  Nxb4 {[%clk 0:00:45]} 34. Bf3 {[%clk 0:00:35]}  g6 {[%clk 0:00:44]} 35. Ra7 {[%clk 0:00:34]}  Nd3 {[%clk 0:00:43]} 36. g3 {[%clk 0:00:30]}  Ne1 {[%clk 0:00:43]} 37. Bb7 {[%clk 0:00:24]}  Rd2+ {[%clk 0:00:39]} 38. Kg1 {[%clk 0:00:22]}  Kg7 {[%clk 0:00:40]} 39. Ba8 {[%clk 0:00:21]}  Nc2 {[%clk 0:00:37]} 40. Bc6 {[%clk 0:00:12]}  Nd4 {[%clk 0:00:35]} 41. Be8 {[%clk 0:00:12]}  Ne2+ {[%clk 0:00:33]} 42. Kf2 {[%clk 0:00:10]}  Nxf4+ {[%clk 0:00:28]} 43. Ke3 {[%clk 0:00:09]}  Rd8 {[%clk 0:00:25]} 44. Bxf7 {[%clk 0:00:09]}  Nd5+ {[%clk 0:00:22]} 45. Kf3 {[%clk 0:00:08]}  Rf8 {[%clk 0:00:21]} 0-1


[Site "https://www.chess.com"]

[Event "Titled Tuesday Blitz November 15 Late 2022"]
[White "Rosenberg, Evan S"]
[Black "chess50years"]
[WhiteFideId "2019299"]
[WhiteElo "2365"]
[BlackElo "2129"]
[Result "0-1"]
[Round "04"]
[TimeControl "180+1"]
[Date "2022.11.16"]
[WhiteClock "0:00:03"]
[BlackClock "0:01:24"]

1. d4 {[%clk 0:02:59]}  Nf6 {[%clk 0:02:58]} 2. Nf3 {[%clk 0:02:55]}  e6 {[%clk 0:02:57]} 3. g3 {[%clk 0:02:55]}  b6 {[%clk 0:02:57]} 4. Bg2 {[%clk 0:02:55]}  Bb7 {[%clk 0:02:57]} 5. O-O {[%clk 0:02:55]}  Be7 {[%clk 0:02:57]} 6. c4 {[%clk 0:02:56]}  Ne4 {[%clk 0:02:56]} 7. d5 {[%clk 0:02:53]}  O-O {[%clk 0:02:52]} 8. Ne1 {[%clk 0:02:50]}  f5 {[%clk 0:02:49]} 9. Nc3 {[%clk 0:02:35]}  Nxc3 {[%clk 0:02:47]} 10. bxc3 {[%clk 0:02:36]}  Na6 {[%clk 0:02:41]} 11. Nd3 {[%clk 0:02:23]}  Rb8 {[%clk 0:02:37]} 12. Qa4 {[%clk 0:02:14]}  Bf6 {[%clk 0:02:28]} 13. Ba3 {[%clk 0:01:57]}  Re8 {[%clk 0:02:15]} 14. dxe6 {[%clk 0:01:55]}  dxe6 {[%clk 0:02:12]} 15. Bxb7 {[%clk 0:01:54]}  Rxb7 {[%clk 0:02:10]} 16. Qxa6 {[%clk 0:01:54]}  Rb8 {[%clk 0:02:07]} 17. c5 {[%clk 0:01:25]}  Bxc3 {[%clk 0:02:07]} 18. Rac1 {[%clk 0:01:25]}  Bd4 {[%clk 0:02:03]} 19. e3 {[%clk 0:01:20]}  Bxe3 {[%clk 0:02:02]} 20. fxe3 {[%clk 0:01:17]}  Qd5 {[%clk 0:01:59]} 21. Qc4 {[%clk 0:01:12]}  Qd7 {[%clk 0:01:50]} 22. Nf4 {[%clk 0:01:06]}  Kh8 {[%clk 0:01:50]} 23. Rfd1 {[%clk 0:01:04]}  Qf7 {[%clk 0:01:50]} 24. cxb6 {[%clk 0:01:00]}  axb6 {[%clk 0:01:49]} 25. Qxc7 {[%clk 0:01:00]}  Qf6 {[%clk 0:01:43]} 26. Rd7 {[%clk 0:00:49]}  Ra8 {[%clk 0:01:42]} 27. Bb4 {[%clk 0:00:39]}  Rxa2 {[%clk 0:01:40]} 28. Bc3 {[%clk 0:00:39]}  e5 {[%clk 0:01:37]} 29. Nh5 {[%clk 0:00:37]}  Qh6 {[%clk 0:01:30]} 30. Bd2 {[%clk 0:00:09]}  Qxh5 {[%clk 0:01:28]} 31. Rxg7 {[%clk 0:00:07]}  Rxd2 {[%clk 0:01:25]} 32. Rf1 {[%clk 0:00:03]}  Qxh2# {[%clk 0:01:24]} 0-1


[Site "https://www.chess.com"]

[Event "Titled Tuesday Blitz November 15 Late 2022"]
[White "Rustemov, Alexander"]
[Black "Manukyan, Sargis A."]
[WhiteFideId "4119002"]
[BlackFideId "13303970"]
[WhiteElo "2829"]
[BlackElo "2187"]
[Result "0-1"]
[Round "04"]
[TimeControl "180+1"]
[Date "2022.11.16"]
[WhiteClock "0:00:03"]
[BlackClock "0:00:06"]

1. d4 {[%clk 0:03:00]}  Nf6 {[%clk 0:02:58]} 2. c4 {[%clk 0:03:01]}  c5 {[%clk 0:02:58]} 3. Nf3 {[%clk 0:03:02]}  cxd4 {[%clk 0:02:58]} 4. Nxd4 {[%clk 0:03:03]}  e5 {[%clk 0:02:58]} 5. Nb5 {[%clk 0:03:03]}  d5 {[%clk 0:02:59]} 6. cxd5 {[%clk 0:03:03]}  Bc5 {[%clk 0:02:59]} 7. N5c3 {[%clk 0:03:04]}  O-O {[%clk 0:02:58]} 8. h3 {[%clk 0:03:04]}  e4 {[%clk 0:02:45]} 9. g4 {[%clk 0:03:04]}  Qb6 {[%clk 0:02:40]} 10. e3 {[%clk 0:03:03]}  Nbd7 {[%clk 0:02:09]} 11. Bg2 {[%clk 0:02:56]}  Ne5 {[%clk 0:02:02]} 12. Nxe4 {[%clk 0:02:42]}  Nxe4 {[%clk 0:01:55]} 13. Bxe4 {[%clk 0:02:43]}  f5 {[%clk 0:01:55]} 14. Bxf5 {[%clk 0:02:26]}  Bxf5 {[%clk 0:01:34]} 15. gxf5 {[%clk 0:02:25]}  Rxf5 {[%clk 0:01:35]} 16. Nc3 {[%clk 0:01:19]}  Re8 {[%clk 0:01:03]} 17. Qc2 {[%clk 0:01:11]}  Nf3+ {[%clk 0:00:54]} 18. Kf1 {[%clk 0:01:07]}  Qa6+ {[%clk 0:00:48]} 19. Qe2 {[%clk 0:01:02]}  Qf6 {[%clk 0:00:36]} 20. Qb5 {[%clk 0:00:52]}  Qf8 {[%clk 0:00:21]} 21. Qe2 {[%clk 0:00:47]}  Nd4 {[%clk 0:00:19]} 22. Qd2 {[%clk 0:00:43]}  Nf3 {[%clk 0:00:16]} 23. Qe2 {[%clk 0:00:42]}  Nd4 {[%clk 0:00:13]} 24. exd4 {[%clk 0:00:35]}  Rxe2 {[%clk 0:00:12]} 25. Kxe2 {[%clk 0:00:32]}  Rxf2+ {[%clk 0:00:12]} 26. Kd3 {[%clk 0:00:32]}  Qf5+ {[%clk 0:00:10]} 27. Kc4 {[%clk 0:00:31]}  Bb6 {[%clk 0:00:10]} 28. Rd1 {[%clk 0:00:11]}  Qc2 {[%clk 0:00:10]} 29. Be3 {[%clk 0:00:09]}  Rf3 {[%clk 0:00:08]} 30. Rd3 {[%clk 0:00:09]}  Qxb2 {[%clk 0:00:08]} 31. d6 {[%clk 0:00:09]}  Ba5 {[%clk 0:00:08]} 32. Re1 {[%clk 0:00:06]}  Qb4+ {[%clk 0:00:08]} 33. Kd5 {[%clk 0:00:05]}  Rf6 {[%clk 0:00:07]} 34. Ne4 {[%clk 0:00:03]}  Qb5+ {[%clk 0:00:07]} 35. Nc5 {[%clk 0:00:04]}  Qc6+ {[%clk 0:00:06]} 36. Ke5 {[%clk 0:00:03]}  Rxd6 {[%clk 0:00:06]} 37. Bf4 {[%clk 0:00:03]}  Qd5# {[%clk 0:00:06]} 0-1


[Site "https://www.chess.com"]

[Event "Titled Tuesday Blitz November 15 Late 2022"]
[White "Sanchez Enriquez, Oscar Gerardo"]
[Black "Prydun, Andriy"]
[WhiteFideId "5106311"]
[BlackFideId "14145898"]
[WhiteElo "2375"]
[BlackElo "2163"]
[Result "1/2-1/2"]
[Round "04"]
[TimeControl "180+1"]
[Date "2022.11.16"]
[WhiteClock "0:00:15"]
[BlackClock "0:00:04"]

1. e4 {[%clk 0:03:00]}  c6 {[%clk 0:02:47]} 2. d4 {[%clk 0:03:00]}  d5 {[%clk 0:02:48]} 3. e5 {[%clk 0:03:01]}  Bf5 {[%clk 0:02:47]} 4. Nf3 {[%clk 0:03:01]}  e6 {[%clk 0:02:47]} 5. Be2 {[%clk 0:03:02]}  Nd7 {[%clk 0:02:40]} 6. O-O {[%clk 0:03:02]}  Ne7 {[%clk 0:02:40]} 7. b3 {[%clk 0:03:03]}  Rc8 {[%clk 0:02:36]} 8. c4 {[%clk 0:03:03]}  Rc7 {[%clk 0:02:33]} 9. Nc3 {[%clk 0:03:03]}  Bg6 {[%clk 0:02:28]} 10. Bg5 {[%clk 0:03:01]}  h6 {[%clk 0:02:26]} 11. Bh4 {[%clk 0:03:01]}  a6 {[%clk 0:02:14]} 12. Rc1 {[%clk 0:03:00]}  Qc8 {[%clk 0:01:53]} 13. Bd3 {[%clk 0:02:58]}  Bxd3 {[%clk 0:01:51]} 14. Qxd3 {[%clk 0:02:59]}  Nf5 {[%clk 0:01:51]} 15. Bg3 {[%clk 0:03:00]}  Ba3 {[%clk 0:01:50]} 16. Rc2 {[%clk 0:03:00]}  O-O {[%clk 0:01:50]} 17. c5 {[%clk 0:03:00]}  b6 {[%clk 0:01:41]} 18. cxb6 {[%clk 0:02:47]}  Nxb6 {[%clk 0:01:40]} 19. Nb1 {[%clk 0:02:47]}  Bb4 {[%clk 0:01:39]} 20. Rfc1 {[%clk 0:02:45]}  a5 {[%clk 0:01:32]} 21. Bf4 {[%clk 0:02:29]}  Ne7 {[%clk 0:01:23]} 22. h4 {[%clk 0:02:25]}  c5 {[%clk 0:01:18]} 23. a3 {[%clk 0:01:58]}  c4 {[%clk 0:01:16]} 24. Qd1 {[%clk 0:01:55]}  Ng6 {[%clk 0:01:11]} 25. Be3 {[%clk 0:01:52]}  Be7 {[%clk 0:01:09]} 26. h5 {[%clk 0:01:53]}  Nh4 {[%clk 0:01:07]} 27. Nxh4 {[%clk 0:01:52]}  Bxh4 {[%clk 0:01:08]} 28. Qg4 {[%clk 0:01:52]}  Bd8 {[%clk 0:01:01]} 29. Bxh6 {[%clk 0:01:52]}  f5 {[%clk 0:01:01]} 30. Qg6 {[%clk 0:01:41]}  Qd7 {[%clk 0:01:00]} 31. Bd2 {[%clk 0:01:37]}  Qf7 {[%clk 0:01:00]} 32. Bxa5 {[%clk 0:01:35]}  cxb3 {[%clk 0:00:53]} 33. Rxc7 {[%clk 0:01:19]}  Bxc7 {[%clk 0:00:53]} 34. Nd2 {[%clk 0:00:56]}  b2 {[%clk 0:00:43]} 35. Rb1 {[%clk 0:00:56]}  Qxg6 {[%clk 0:00:31]} 36. hxg6 {[%clk 0:00:55]}  Na4 {[%clk 0:00:31]} 37. Bxc7 {[%clk 0:00:48]}  Rc8 {[%clk 0:00:32]} 38. Ba5 {[%clk 0:00:37]}  Rc1+ {[%clk 0:00:31]} 39. Kh2 {[%clk 0:00:37]}  Kf8 {[%clk 0:00:24]} 40. Bb4+ {[%clk 0:00:35]}  Kg8 {[%clk 0:00:24]} 41. Kg3 {[%clk 0:00:36]}  Kh8 {[%clk 0:00:22]} 42. Kf4 {[%clk 0:00:33]}  Kg8 {[%clk 0:00:22]} 43. Kg5 {[%clk 0:00:33]}  Kh8 {[%clk 0:00:22]} 44. f3 {[%clk 0:00:34]}  Kg8 {[%clk 0:00:22]} 45. g4 {[%clk 0:00:32]}  fxg4 {[%clk 0:00:22]} 46. fxg4 {[%clk 0:00:33]}  Kh8 {[%clk 0:00:22]} 47. Kf4 {[%clk 0:00:29]}  Kg8 {[%clk 0:00:22]} 48. Ke3 {[%clk 0:00:30]}  Kh8 {[%clk 0:00:23]} 49. Kd3 {[%clk 0:00:29]}  Kg8 {[%clk 0:00:23]} 50. Ke3 {[%clk 0:00:29]}  Kh8 {[%clk 0:00:23]} 51. Kf4 {[%clk 0:00:28]}  Kg8 {[%clk 0:00:23]} 52. Kg3 {[%clk 0:00:25]}  Kh8 {[%clk 0:00:24]} 53. Kh4 {[%clk 0:00:25]}  Kg8 {[%clk 0:00:25]} 54. Kg5 {[%clk 0:00:24]}  Kh8 {[%clk 0:00:25]} 55. Kh4 {[%clk 0:00:22]}  Kg8 {[%clk 0:00:25]} 56. Rxb2 {[%clk 0:00:23]}  Nxb2 {[%clk 0:00:24]} 57. Nf3 {[%clk 0:00:23]}  Rc6 {[%clk 0:00:21]} 58. Bd6 {[%clk 0:00:20]}  Nc4 {[%clk 0:00:20]} 59. Bc5 {[%clk 0:00:20]}  Ra6 {[%clk 0:00:19]} 60. Ng5 {[%clk 0:00:21]}  Nb2 {[%clk 0:00:16]} 61. Nf7 {[%clk 0:00:21]}  Nc4 {[%clk 0:00:15]} 62. Nd8 {[%clk 0:00:21]}  Ne3 {[%clk 0:00:10]} 63. Nb7 {[%clk 0:00:19]}  Nc4 {[%clk 0:00:10]} 64. Bd6 {[%clk 0:00:18]}  Rb6 {[%clk 0:00:08]} 65. Nd8 {[%clk 0:00:18]}  Nxd6 {[%clk 0:00:07]} 66. exd6 {[%clk 0:00:18]}  Rxd6 {[%clk 0:00:07]} 67. Nf7 {[%clk 0:00:19]}  Ra6 {[%clk 0:00:07]} 68. Nd8 {[%clk 0:00:18]}  Rxa3 {[%clk 0:00:03]} 69. Nxe6 {[%clk 0:00:18]}  Ra6 {[%clk 0:00:04]} 70. Nf4 {[%clk 0:00:18]}  Ra4 {[%clk 0:00:03]} 71. Nxd5 {[%clk 0:00:14]}  Rxd4 {[%clk 0:00:03]} 72. Ne7+ {[%clk 0:00:15]}  Kf8 {[%clk 0:00:03]} 73. Nf5 {[%clk 0:00:16]}  Rd5 {[%clk 0:00:03]} 74. Kg5 {[%clk 0:00:17]}  Ra5 {[%clk 0:00:04]} 75. Kf4 {[%clk 0:00:17]}  Kg8 {[%clk 0:00:04]} 76. Ne3 {[%clk 0:00:17]}  Kf8 {[%clk 0:00:05]} 77. Nf5 {[%clk 0:00:16]}  Kg8 {[%clk 0:00:05]} 78. Kg5 {[%clk 0:00:17]}  Kf8 {[%clk 0:00:06]} 79. Kh4 {[%clk 0:00:17]}  Kg8 {[%clk 0:00:06]} 80. Ne7+ {[%clk 0:00:17]}  Kf8 {[%clk 0:00:06]} 81. Nc6 {[%clk 0:00:18]}  Ra4 {[%clk 0:00:07]} 82. Ne5 {[%clk 0:00:18]}  Kg8 {[%clk 0:00:07]} 83. Nc6 {[%clk 0:00:17]}  Ra6 {[%clk 0:00:07]} 84. Ne7+ {[%clk 0:00:17]}  Kf8 {[%clk 0:00:08]} 85. Nf5 {[%clk 0:00:16]}  Rxg6 {[%clk 0:00:08]} 86. Kh5 {[%clk 0:00:17]}  Ra6 {[%clk 0:00:09]} 87. Kg5 {[%clk 0:00:18]}  Kg8 {[%clk 0:00:09]} 88. Ne7+ {[%clk 0:00:18]}  Kh7 {[%clk 0:00:09]} 89. Nf5 {[%clk 0:00:19]}  Ra5 {[%clk 0:00:09]} 90. Kf4 {[%clk 0:00:19]}  g6 {[%clk 0:00:09]} 91. Nd6 {[%clk 0:00:19]}  Kh6 {[%clk 0:00:09]} 92. Kg3 {[%clk 0:00:20]}  Kg7 {[%clk 0:00:10]} 93. Ne8+ {[%clk 0:00:19]}  Kf7 {[%clk 0:00:10]} 94. Nd6+ {[%clk 0:00:20]}  Ke6 {[%clk 0:00:10]} 95. Ne4 {[%clk 0:00:21]}  Ra4 {[%clk 0:00:10]} 96. Ng5+ {[%clk 0:00:21]}  Ke7 {[%clk 0:00:10]} 97. Nh7 {[%clk 0:00:22]}  Ra5 {[%clk 0:00:09]} 98. Kh4 {[%clk 0:00:22]}  Kf7 {[%clk 0:00:08]} 99. Ng5+ {[%clk 0:00:22]}  Kf6 {[%clk 0:00:09]} 100. Ne4+ {[%clk 0:00:23]}  Ke5 {[%clk 0:00:09]} 101. Ng5 {[%clk 0:00:21]}  Kf4 {[%clk 0:00:09]} 102. Ne6+ {[%clk 0:00:21]}  Kf3 {[%clk 0:00:09]} 103. Nd4+ {[%clk 0:00:19]}  Ke4 {[%clk 0:00:09]} 104. Ne6 {[%clk 0:00:19]}  Rd5 {[%clk 0:00:08]} 105. Ng5+ {[%clk 0:00:16]}  Kf4 {[%clk 0:00:07]} 106. Nh3+ {[%clk 0:00:16]}  Kf3 {[%clk 0:00:06]} 107. Ng5+ {[%clk 0:00:17]}  Ke3 {[%clk 0:00:06]} 108. Nh3 {[%clk 0:00:16]}  Re5 {[%clk 0:00:04]} 109. Ng5 {[%clk 0:00:16]}  Kf4 {[%clk 0:00:04]} 110. Nh3+ {[%clk 0:00:16]}  Ke4 {[%clk 0:00:04]} 111. Ng5+ {[%clk 0:00:16]}  Kd5 {[%clk 0:00:05]} 112. Nf3 {[%clk 0:00:16]}  Re3 {[%clk 0:00:03]} 113. Ng5 {[%clk 0:00:15]}  Re5 {[%clk 0:00:03]} 114. Nf3 {[%clk 0:00:15]}  Re3 {[%clk 0:00:03]} 115. Ng5 {[%clk 0:00:15]}  Re5 {[%clk 0:00:04]} 1/2-1/2


[Site "https://www.chess.com"]